{"text_format":"1","workbook":"xlsx","n_sheets":1,"sheets":["Sheet1"],"not_rendered":{"charts":0,"images":0,"macros":1,"external_links":0,"defined_names":11,"comments":0,"pivot_tables":0},"unopened":[],"bounds":{"document_bytes":16777216,"sheet_cells":100000,"rows_first":2000,"rows_last":500,"rows_between":2000,"halvings":0,"cell_chars":16384,"cell_head_chars":4096},"cells_cut":0,"cells_raw":0,"read":"whole","date_system":"1900"}

{"sheet":"Sheet1","index":0,"n_rows":312,"n_cols":10,"rows_kept":312,"cut":false,"hidden":false,"merged":[[11,5,12,5],[11,6,12,6],[13,5,14,5],[13,6,14,6],[159,0,160,5],[176,2,176,5],[177,2,177,5],[178,2,178,5],[179,2,179,5],[196,2,196,5],[180,2,180,5],[174,2,174,5],[175,2,175,5],[15,5,16,5],[15,6,16,6],[17,5,18,5],[17,6,18,6],[186,2,186,5],[187,2,187,5],[169,2,169,5],[170,2,170,5],[171,2,171,5],[172,2,172,5],[173,2,173,5],[191,2,191,5],[192,2,192,5],[193,2,193,5],[194,2,194,5],[195,2,195,5],[188,2,188,5],[189,2,189,5],[190,2,190,5],[181,2,181,5],[182,2,182,5],[183,2,183,5],[184,2,184,5],[185,2,185,5],[201,2,201,5],[202,2,202,5],[203,2,203,5],[204,2,204,5],[205,2,205,5],[197,2,197,5],[198,2,198,5],[199,2,199,5],[200,2,200,5],[211,2,211,5],[212,2,212,5],[213,2,213,5],[214,2,214,5],[215,2,215,5],[206,2,206,5],[207,2,207,5],[208,2,208,5],[209,2,209,5],[210,2,210,5],[221,2,221,5],[222,2,222,5],[223,2,223,5],[224,2,224,5],[225,2,225,5],[216,2,216,5],[217,2,217,5],[218,2,218,5],[219,2,219,5],[220,2,220,5],[231,2,231,5],[232,2,232,5],[233,2,233,5],[234,2,234,5],[235,2,235,5],[226,2,226,5],[227,2,227,5],[228,2,228,5],[229,2,229,5],[230,2,230,5],[241,2,241,5],[242,2,242,5],[243,2,243,5],[244,2,244,5],[245,2,245,5],[236,2,236,5],[237,2,237,5],[238,2,238,5],[239,2,239,5],[240,2,240,5],[251,2,251,5],[252,2,252,5],[253,2,253,5],[254,2,254,5],[255,2,255,5],[246,2,246,5],[247,2,247,5],[248,2,248,5],[249,2,249,5],[250,2,250,5],[261,2,261,5],[262,2,262,5],[263,2,263,5],[264,2,264,5],[265,2,265,5],[256,2,256,5],[257,2,257,5],[258,2,258,5],[259,2,259,5],[260,2,260,5],[271,2,271,5],[272,2,272,5],[273,2,273,5],[274,2,274,5],[275,2,275,5],[266,2,266,5],[267,2,267,5],[268,2,268,5],[269,2,269,5],[270,2,270,5],[282,2,282,5],[283,2,283,5],[284,2,284,5],[285,2,285,5],[276,2,276,5],[277,2,277,5],[278,2,278,5],[279,2,279,5],[280,2,280,5],[311,2,311,5],[306,2,306,5],[307,2,307,5],[308,2,308,5],[309,2,309,5],[310,2,310,5],[301,2,301,5],[302,2,302,5],[303,2,303,5],[304,2,304,5],[305,2,305,5],[296,2,296,5],[297,2,297,5],[298,2,298,5],[299,2,299,5],[300,2,300,5],[291,2,291,5],[292,2,292,5],[293,2,293,5],[161,2,161,5],[162,2,162,5],[163,2,163,5],[164,2,164,5],[165,2,165,5],[166,2,166,5],[167,2,167,5],[168,2,168,5],[294,2,294,5],[295,2,295,5],[286,2,286,5],[287,2,287,5],[288,2,288,5],[289,2,289,5],[290,2,290,5],[281,2,281,5]]}
["PE Secondary Measure Spreadsheet"]
[null,"Student Name (Last and First)","Achieved a 100%?","Score Counted for Data?",null,null,null,null,"YES","Counter"]
[1,null,"YES","YES",null,"Teacher",null,null,"NO",{"$f":"COUNTA(B3)","v":0}]
[2,null,"YES","YES",null,"Total Tested",{"$f":"COUNTA(Student)","v":0},null,null,{"$f":"COUNTA(B4)","v":0}]
[3,null,"YES","YES",null,"Total Excluded",{"$f":"COUNTIFS(Counter,\"1\",Counted?,\"NO\")","v":0},null,null,0]
[4,null,"YES","YES",null,"Total Counted",{"$f":"COUNTIFS(Counter,\"1\",Counted?,\"YES\")","v":0},null,null,0]
[5,null,"YES","YES",null,"Total Achieved a 100% (Counted)",{"$f":"COUNTIFS(Target_Met?,\"YES\",Counted?,\"YES\",Counter,\"1\")","v":0},null,null,0]
[6,null,"YES","YES",null,"Percentage of Achieved a 100% (Counted)",{"$f":"Meeting_Target/Counted","v":{"$error":"#DIV/0!"}},null,null,0]
[7,null,"YES","YES",null,"Rating",{"$f":"IF(PMeeting_Target>=60.5%,\"HE\",IF(AND(PMeeting_Target>=50.5%,PMeeting_Target<60.5%),\"E\",IF(AND(PMeeting_Target>=40.5%,PMeeting_Target<50.5%),\"IN\",\"IE\")))","v":{"$error":"#DIV/0!"}},null,null,0]
[8,null,"YES","YES",null,null,null,null,null,0]
[9,null,"YES","YES",null,null,null,null,null,0]
[10,null,"YES","YES",null,"Highly Effective (HE):","60% +1 of students achieved a 100% on the assessment",null,null,0]
[11,null,"YES","YES",null,null,null,null,null,0]
[12,null,"YES","YES",null,"Effective (E):","50% +1 to 60% of students achieved a 100% on the assessment",null,null,0]
[13,null,"YES","YES",null,null,null,null,null,0]
[14,null,"YES","YES",null,"Improvement Necessary (IN):","40% +1 to 50% of students achieved a 100% on the assessment",null,null,0]
[15,null,"YES","YES",null,null,null,null,null,0]
[16,null,"YES","YES",null,"Ineffective (IE):","Less than 40% of students achieved a 100% on the assessment",null,null,0]
[17,null,"YES","YES",null,null,null,null,null,0]
[18,null,"YES","YES",null,null,null,null,null,0]
[19,null,"YES","YES",null,null,null,null,null,0]
[20,null,"YES","YES",null,null,null,null,null,0]
[21,null,"YES","YES",null,null,null,null,null,0]
[22,null,"YES","YES",null,null,null,null,null,0]
[23,null,"YES","YES",null,null,null,null,null,0]
[24,null,"YES","YES",null,null,null,null,null,0]
[25,null,"YES","YES",null,null,null,null,null,0]
[26,null,"YES","YES",null,null,null,null,null,0]
[27,null,"YES","YES",null,null,null,null,null,0]
[28,null,"YES","YES",null,null,null,null,null,0]
[29,null,"YES","YES",null,null,null,null,null,0]
[30,null,"YES","YES",null,null,null,null,null,0]
[31,null,"YES","YES",null,null,null,null,null,0]
[32,null,"YES","YES",null,null,null,null,null,0]
[33,null,"YES","YES",null,null,null,null,null,0]
[34,null,"YES","YES",null,null,null,null,null,0]
[35,null,"YES","YES",null,null,null,null,null,0]
[36,null,"YES","YES",null,null,null,null,null,0]
[37,null,"YES","YES",null,null,null,null,null,0]
[38,null,"YES","YES",null,null,null,null,null,0]
[39,null,"YES","YES",null,null,null,null,null,0]
[40,null,"YES","YES",null,null,null,null,null,0]
[41,null,"YES","YES",null,null,null,null,null,0]
[42,null,"YES","YES",null,null,null,null,null,0]
[43,null,"YES","YES",null,null,null,null,null,0]
[44,null,"YES","YES",null,null,null,null,null,0]
[45,null,"YES","YES",null,null,null,null,null,0]
[46,null,"YES","YES",null,null,null,null,null,0]
[47,null,"YES","YES",null,null,null,null,null,0]
[48,null,"YES","YES",null,null,null,null,null,0]
[49,null,"YES","YES",null,null,null,null,null,0]
[50,null,"YES","YES",null,null,null,null,null,0]
[51,null,"YES","YES",null,null,null,null,null,0]
[52,null,"YES","YES",null,null,null,null,null,0]
[53,null,"YES","YES",null,null,null,null,null,0]
[54,null,"YES","YES",null,null,null,null,null,0]
[55,null,"YES","YES",null,null,null,null,null,0]
[56,null,"YES","YES",null,null,null,null,null,0]
[57,null,"YES","YES",null,null,null,null,null,0]
[58,null,"YES","YES",null,null,null,null,null,0]
[59,null,"YES","YES",null,null,null,null,null,0]
[60,null,"YES","YES",null,null,null,null,null,0]
[61,null,"YES","YES",null,null,null,null,null,0]
[62,null,"YES","YES",null,null,null,null,null,0]
[63,null,"YES","YES",null,null,null,null,null,0]
[64,null,"YES","YES",null,null,null,null,null,0]
[65,null,"YES","YES",null,null,null,null,null,0]
[66,null,"YES","YES",null,null,null,null,null,{"$f":"COUNTA(B68)","v":0}]
[67,null,"YES","YES",null,null,null,null,null,0]
[68,null,"YES","YES",null,null,null,null,null,0]
[69,null,"YES","YES",null,null,null,null,null,0]
[70,null,"YES","YES",null,null,null,null,null,0]
[71,null,"YES","YES",null,null,null,null,null,0]
[72,null,"YES","YES",null,null,null,null,null,0]
[73,null,"YES","YES",null,null,null,null,null,0]
[74,null,"YES","YES",null,null,null,null,null,0]
[75,null,"YES","YES",null,null,null,null,null,0]
[76,null,"YES","YES",null,null,null,null,null,0]
[77,null,"YES","YES",null,null,null,null,null,0]
[78,null,"YES","YES",null,null,null,null,null,0]
[79,null,"YES","YES",null,null,null,null,null,0]
[80,null,"YES","YES",null,null,null,null,null,0]
[81,null,"YES","YES",null,null,null,null,null,0]
[82,null,"YES","YES",null,null,null,null,null,0]
[83,null,"YES","YES",null,null,null,null,null,0]
[84,null,"YES","YES",null,null,null,null,null,0]
[85,null,"YES","YES",null,null,null,null,null,0]
[86,null,"YES","YES",null,null,null,null,null,0]
[87,null,"YES","YES",null,null,null,null,null,0]
[88,null,"YES","YES",null,null,null,null,null,0]
[89,null,"YES","YES",null,null,null,null,null,0]
[90,null,"YES","YES",null,null,null,null,null,0]
[91,null,"YES","YES",null,null,null,null,null,0]
[92,null,"YES","YES",null,null,null,null,null,0]
[93,null,"YES","YES",null,null,null,null,null,0]
[94,null,"YES","YES",null,null,null,null,null,0]
[95,null,"YES","YES",null,null,null,null,null,0]
[96,null,"YES","YES",null,null,null,null,null,0]
[97,null,"YES","YES",null,null,null,null,null,0]
[98,null,"YES","YES",null,null,null,null,null,0]
[99,null,"YES","YES",null,null,null,null,null,0]
[100,null,"YES","YES",null,null,null,null,null,0]
[101,null,"YES","YES",null,null,null,null,null,0]
[102,null,"YES","YES",null,null,null,null,null,0]
[103,null,"YES","YES",null,null,null,null,null,0]
[104,null,"YES","YES",null,null,null,null,null,0]
[105,null,"YES","YES",null,null,null,null,null,0]
[106,null,"YES","YES",null,null,null,null,null,0]
[107,null,"YES","YES",null,null,null,null,null,0]
[108,null,"YES","YES",null,null,null,null,null,0]
[109,null,"YES","YES",null,null,null,null,null,0]
[110,null,"YES","YES",null,null,null,null,null,0]
[111,null,"YES","YES",null,null,null,null,null,0]
[112,null,"YES","YES",null,null,null,null,null,0]
[113,null,"YES","YES",null,null,null,null,null,0]
[114,null,"YES","YES",null,null,null,null,null,0]
[115,null,"YES","YES",null,null,null,null,null,0]
[116,null,"YES","YES",null,null,null,null,null,0]
[117,null,"YES","YES",null,null,null,null,null,0]
[118,null,"YES","YES",null,null,null,null,null,0]
[119,null,"YES","YES",null,null,null,null,null,0]
[120,null,"YES","YES",null,null,null,null,null,0]
[121,null,"YES","YES",null,null,null,null,null,0]
[122,null,"YES","YES",null,null,null,null,null,0]
[123,null,"YES","YES",null,null,null,null,null,0]
[124,null,"YES","YES",null,null,null,null,null,0]
[125,null,"YES","YES",null,null,null,null,null,0]
[126,null,"YES","YES",null,null,null,null,null,0]
[127,null,"YES","YES",null,null,null,null,null,0]
[128,null,"YES","YES",null,null,null,null,null,0]
[129,null,"YES","YES",null,null,null,null,null,0]
[130,null,"YES","YES",null,null,null,null,null,{"$f":"COUNTA(B132)","v":0}]
[131,null,"YES","YES",null,null,null,null,null,0]
[132,null,"YES","YES",null,null,null,null,null,0]
[133,null,"YES","YES",null,null,null,null,null,0]
[134,null,"YES","YES",null,null,null,null,null,0]
[135,null,"YES","YES",null,null,null,null,null,0]
[136,null,"YES","YES",null,null,null,null,null,0]
[137,null,"YES","YES",null,null,null,null,null,0]
[138,null,"YES","YES",null,null,null,null,null,0]
[139,null,"YES","YES",null,null,null,null,null,0]
[140,null,"YES","YES",null,null,null,null,null,0]
[141,null,"YES","YES",null,null,null,null,null,0]
[142,null,"YES","YES",null,null,null,null,null,0]
[143,null,"YES","YES",null,null,null,null,null,0]
[144,null,"YES","YES",null,null,null,null,null,0]
[145,null,"YES","YES",null,null,null,null,null,0]
[146,null,"YES","YES",null,null,null,null,null,0]
[147,null,"YES","YES",null,null,null,null,null,0]
[148,null,"YES","YES",null,null,null,null,null,0]
[149,null,"YES","YES",null,null,null,null,null,0]
[150,null,"YES","YES",null,null,null,null,null,0]
[]
[]
[]
[]
[]
[]
[]
["After approval from your evaluator, enter the names of students whose data will not be used with a brief explanation why."]
[]
[null,"Student Name","Reason for removing student from evaluative data"]
[null,{"$f":"IF(D3=\"NO\",B3, \"DELETE\")","v":"DELETE"}]
[null,{"$f":"IF(D4=\"NO\",B4, \"DELETE\")","v":"DELETE"}]
[null,"DELETE"]
[null,"DELETE"]
[null,"DELETE"]
[null,"DELETE"]
[null,"DELETE"]
[null,"DELETE"]
[null,"DELETE"]
[null,"DELETE"]
[null,"DELETE"]
[null,"DELETE"]
[null,"DELETE"]
[null,"DELETE"]
[null,"DELETE"]
[null,"DELETE"]
[null,"DELETE"]
[null,"DELETE"]
[null,"DELETE"]
[null,"DELETE"]
[null,"DELETE"]
[null,"DELETE"]
[null,"DELETE"]
[null,"DELETE"]
[null,"DELETE"]
[null,"DELETE"]
[null,"DELETE"]
[null,"DELETE"]
[null,"DELETE"]
[null,"DELETE"]
[null,"DELETE"]
[null,"DELETE"]
[null,"DELETE"]
[null,"DELETE"]
[null,"DELETE"]
[null,"DELETE"]
[null,"DELETE"]
[null,"DELETE"]
[null,"DELETE"]
[null,"DELETE"]
[null,"DELETE"]
[null,"DELETE"]
[null,"DELETE"]
[null,"DELETE"]
[null,"DELETE"]
[null,"DELETE"]
[null,"DELETE"]
[null,"DELETE"]
[null,"DELETE"]
[null,"DELETE"]
[null,"DELETE"]
[null,"DELETE"]
[null,"DELETE"]
[null,"DELETE"]
[null,"DELETE"]
[null,"DELETE"]
[null,"DELETE"]
[null,"DELETE"]
[null,"DELETE"]
[null,"DELETE"]
[null,"DELETE"]
[null,"DELETE"]
[null,"DELETE"]
[null,"DELETE"]
[null,"DELETE"]
[null,{"$f":"IF(D68=\"NO\",B68, \"DELETE\")","v":"DELETE"}]
[null,"DELETE"]
[null,"DELETE"]
[null,"DELETE"]
[null,"DELETE"]
[null,"DELETE"]
[null,"DELETE"]
[null,"DELETE"]
[null,"DELETE"]
[null,"DELETE"]
[null,"DELETE"]
[null,"DELETE"]
[null,"DELETE"]
[null,"DELETE"]
[null,"DELETE"]
[null,"DELETE"]
[null,"DELETE"]
[null,"DELETE"]
[null,"DELETE"]
[null,"DELETE"]
[null,"DELETE"]
[null,"DELETE"]
[null,"DELETE"]
[null,"DELETE"]
[null,"DELETE"]
[null,"DELETE"]
[null,"DELETE"]
[null,"DELETE"]
[null,"DELETE"]
[null,"DELETE"]
[null,"DELETE"]
[null,"DELETE"]
[null,"DELETE"]
[null,"DELETE"]
[null,"DELETE"]
[null,"DELETE"]
[null,"DELETE"]
[null,"DELETE"]
[null,"DELETE"]
[null,"DELETE"]
[null,"DELETE"]
[null,"DELETE"]
[null,"DELETE"]
[null,"DELETE"]
[null,"DELETE"]
[null,"DELETE"]
[null,"DELETE"]
[null,"DELETE"]
[null,"DELETE"]
[null,"DELETE"]
[null,"DELETE"]
[null,"DELETE"]
[null,"DELETE"]
[null,"DELETE"]
[null,"DELETE"]
[null,"DELETE"]
[null,"DELETE"]
[null,"DELETE"]
[null,"DELETE"]
[null,"DELETE"]
[null,"DELETE"]
[null,"DELETE"]
[null,"DELETE"]
[null,"DELETE"]
[null,{"$f":"IF(D132=\"NO\",B132, \"DELETE\")","v":"DELETE"}]
[null,"DELETE"]
[null,"DELETE"]
[null,"DELETE"]
[null,"DELETE"]
[null,"DELETE"]
[null,"DELETE"]
[null,"DELETE"]
[null,"DELETE"]
[null,"DELETE"]
[null,"DELETE"]
[null,"DELETE"]
[null,"DELETE"]
[null,"DELETE"]
[null,"DELETE"]
[null,"DELETE"]
[null,"DELETE"]
[null,"DELETE"]
[null,"DELETE"]
[null,"DELETE"]
[null,"DELETE"]